Cogmind - Beta 10.2 *** ADVENTURER MODE // 2021.02.15 @ 23:43:57 Player: DUMBBITCHINDYSTOPIA Result: Destroyed by G-50 Soldier with Heavy Laser Performance ------------- Evolutions (4) 2000 Regions Visited (12) 2400 Robots Destroyed (229) 1145 Value Destroyed (7830) 7830 Prototype IDs (27) 540 Alien Tech Used (0) 0 Bonus (1601) 1601 TOTAL SCORE: 15516 Bonus ------- High Alert Combat Kills 94 Follower Combat Kills 1007 Met R17 at Cetus 500 Cogmind --------- Core Integrity 0/850 Matter 106/300 Energy 26/100 System Corruption 1% Temperature Cool (18) Movement Core (50) Location -6/Hub_04(d) Parts ------- > --- POWER (1) -------- (None) > --- PROPULSION (4) --- (None) > --- UTILITY (7) ------ (None) > --- WEAPON (3) ------- (None) > --- INVENTORY (4) ---- Centrium Heavy Treads Centrium Medium Armor Plating Improved KE Penetrator Peak State ------------ > --- POWER ------------ Quantum Reactor > --- PROPULSION ------- Centrium Heavy Treads Centrium Heavy Treads > --- UTILITY ---------- Advanced Heat Sink High-capacity Storage Unit Improved Heavy Armor Plating Centrium Medium Armor Plating Focal Shield Field Recycling Unit > --- WEAPON ----------- Improved KE Penetrator Magnetic Acceleration Cannon Magnetic Acceleration Cannon > --- INVENTORY -------- Light Nuclear Core Improved Deuterium Engine Quantum Reactor Centrium Heavy Treads Centrium Medium Armor Plating Centrium Medium Armor Plating Improved KE Penetrator Improved KE Penetrator Bore Cannon Bore Cannon Phasing Sabre [Rating: 103] Favorites ----------- Power Heavy Ion Engine Engine Heavy Ion Engine Power Core Nuclear Core Reactor Quantum Reactor Propulsion Compact Wheel Treads Improved Medium Treads Leg Flexi-carbon Leg Wheel Compact Wheel Flight Unit Improved Flight Unit Utility Improved Terrain Scan Processor Device Advanced Heat Sink Storage High-capacity Storage Unit Processor Improved Terrain Scan Processor Hackware Hacking Suite Protection Hardened Medium Armor Plating Weapon Magnetic Acceleration Cannon Energy Gun Pulse Rifle Energy Cannon Ion Cannon Ballistic Gun Precision Assault Rifle Ballistic Cannon Magnetic Acceleration Cannon Launcher Grenade Launcher Impact Weapon Heavy Hammer Slashing Weapon Katana Build | -11 -10 -9 -9 -9 -8 -8 -7 -6 -6 -6 -6 -6 ------- Run | Scr Mat Mat Min Exi Min Mat Fac Fac Ext Cet Arc Hub Slots Evolved 8 | . . 2 . . . 2 2 2 . . . . Power . | . . . . . . . . . . . . . Propulsion 2 | . . 1 . . . 1 . . . . . . Utility 5 | . . 1 . . . 1 2 1 . . . . Weapon 1 | . . . . . . . . 1 . . . . Parts Attached 223 | 8 9 25 13 1 . 37 49 18 48 7 . 8 Power 13 | 1 1 1 . . . 1 3 1 4 1 . . Engine 5 | 1 1 1 . . . 1 . . 1 . . . Core 6 | . . . . . . . 3 . 3 . . . Reactor 2 | . . . . . . . . 1 . 1 . . Propulsion 69 | 2 2 9 7 . . 19 11 4 13 2 . . Treads 10 | . . . . . . 3 . . 5 2 . . Leg 12 | . . . . . . . . 4 8 . . . Wheel 46 | 2 2 8 7 . . 16 11 . . . . . Hover . | . . . . . . . . . . . . . Flight 1 | . . 1 . . . . . . . . . . Utility 61 | 3 . 4 2 1 . 7 16 5 18 1 . 4 Device 23 | 1 . . 1 . . 5 5 1 9 . . 1 Storage 7 | 1 . 1 1 1 . . 3 . . . . . Processor 12 | 1 . 3 . . . . 3 2 2 . . 1 Hackware 1 | . . . . . . . . 1 . . . . Protection 18 | . . . . . . 2 5 1 7 1 . 2 Artifact . | . . . . . . . . . . . . . Weapon 80 | 2 6 11 4 . . 10 19 8 13 3 . 4 Energy Gun 27 | 2 5 8 2 . . 5 3 . 1 1 . . Energy Cannon 1 | . . . . . . 1 . . . . . . Ballistic Gun 27 | . . 2 . . . 2 11 5 5 2 . . Ballistic Cannon 7 | . . . . . . . . . 4 . . 3 Launcher 6 | . 1 . 1 . . . 2 1 . . . 1 Special Weapon . | . . . . . . . . . . . . . Impact Weapon 2 | . . 1 1 . . . . . . . . . Slashing Weapon 10 | . . . . . . 2 3 2 3 . . . Piercing Weapon . | . . . . . . . . . . . . . Special Melee Weapon . | . . . . . . . . . . . . . Unidentified Prototypes 9 | . . 3 . . . 1 1 . . 4 . . Parts Lost 43 | . . . . . . 9 3 11 12 . . 8 Power 4 | . . . . . . . . 1 2 . . 1 Propulsion 12 | . . . . . . 5 2 3 2 . . . Utility 11 | . . . . . . 1 . 4 5 . . 1 Weapon 16 | . . . . . . 3 1 3 3 . . 6 Highest Loss Streak 8 | . . . . . . 3 2 6 5 . . 8 Average Slot Usage (%) 90 | . 100 97 100 93 88 84 90 71 93 85 80 82 Engine 5 | . 14 11 11 11 11 9 . . 3 . . . Core 1 | . . . . . . . 6 3 1 . . . Reactor 1 | . . . . . . . . 2 1 5 6 5 Treads 5 | . . . . . . . . . 15 19 13 13 Leg 2 | . . . . . . . . 7 9 . . . Wheel 17 | . 28 33 33 33 33 31 23 5 . . . . Device 11 | . 14 4 1 . . 8 12 12 14 20 20 23 Storage 6 | . . 6 9 11 11 9 7 6 6 6 6 6 Processor 10 | . 14 20 22 16 11 2 7 9 12 . . 4 Protection 7 | . . . . . . 6 15 2 7 13 13 8 Energy Gun 5 | . 26 18 12 11 11 8 . . . . . . Ballistic Gun 5 | . . 2 . . . 4 12 11 3 5 6 5 Ballistic Cannon 3 | . . . . . . . . . 11 13 13 11 Impact Weapon 1 | . . 1 8 11 11 . . . . . . . Slashing Weapon 1 | . . . . . . 4 . 5 3 . . . Naked Turns . | . . . . . . . . . . . . . Heaviest Build 135 | 13 11 30 30 94 94 106 135 69 104 106 106 106 Greatest Support 160 | 20 26 42 48 48 48 64 60 70 118 160 160 160 Greatest Overweight (x) 15 | . . . . 1 1 6 2 15 1 . . . Average Overweight (x) . | . . . . . 1 1 1 1 . . . . Largest Inventory Capacity 32 | 6 4 10 10 24 24 24 32 12 12 12 12 12 Average Capacity 12 | 5 4 7 9 17 24 24 13 12 12 12 12 11 Most Carried 13 | 5 4 10 10 10 8 13 12 11 12 12 10 12 Average Carried 8 | 2 3 6 8 8 8 9 8 7 9 11 10 10 Final Capacity 24 | 4 4 10 10 24 24 24 12 12 12 12 12 4 Final Carried 12 | 3 4 10 9 8 8 12 9 10 11 10 10 4 Class Distribution -------------------- 33% | Mutant 19% | Scavenger-Tank 17% | Scavenger-Mutant 13% | Hauler-Mutant 4% | Assassin 4% | Scavenger-Gunner Dominant Class ---------------- Mutant | -10/Materials Mutant | -9/Materials Mutant | -9/Mines Hauler-Mutant | -9/Exiles Hauler-Mutant | -8/Mines Hauler-Mutant | -8/Materials Mutant | -7/Factory Assassin | -6/Factory Scavenger-Tank | -6/Extension Scavenger-Tank | -6/Cetus Scavenger-Tank | -6/Archives Scavenger-Tank | -6/Hub_04(d) Resources | -11 -10 -9 -9 -9 -8 -8 -7 -6 -6 -6 -6 -6 ----------- Run | Scr Mat Mat Min Exi Min Mat Fac Fac Ext Cet Arc Hub Matter Collected 5312 | 188 192 304 140 10 10 540 1163 611 1220 475 160 299 Remotely . | . . . . . . . . . . . . . Salvage Created 10011 | 167 812 1255 407 . 23 1632 1778 798 1753 541 252 593 Parts 491 | 11 40 83 11 . . 83 81 33 82 11 4 52 Haulers Intercepted 14 | . 2 5 . . . 1 1 1 2 . . 2 Recyclers Shooed 12 | 1 2 1 2 . . 1 1 2 2 . . . Parts Field Recycled . | . . . . . . . . . . . . . Retrieved Matter . | . . . . . . . . . . . . . Parts Self-Destructed . | . . . . . . . . . . . . . Prevented . | . . . . . . . . . . . . . Kills | -11 -10 -9 -9 -9 -8 -8 -7 -6 -6 -6 -6 -6 ------- Run | Scr Mat Mat Min Exi Min Mat Fac Fac Ext Cet Arc Hub Combat Hostiles Destroyed 142 | . 9 14 2 . . 26 30 13 26 11 4 7 Melee 19 | . . . . . . 5 . 3 11 . . . Guns 96 | . 9 12 2 . . 21 29 8 6 3 1 5 Cannons 22 | . . . . . . . 1 . 9 8 3 1 AOE 5 | . . 2 . . . . . 2 . . . 1 Classes Destroyed 16 | 2 5 4 1 . . 1 2 . 1 . . . Worker 15 | . 1 1 . . . 3 2 1 1 . . 6 Builder 14 | . . 3 . . . 2 2 1 1 . . 5 Tunneler 7 | 3 . . . . 2 1 1 . . . . . Hauler 14 | . 2 5 . . . 1 1 1 2 . . 2 Recycler 18 | 1 4 2 4 . . 4 2 . 1 . . . Mechanic 1 | . . 1 . . . . . . . . . . Operator 5 | . . 1 . . . 1 2 . . . . 1 Watcher 13 | . 3 4 . . . 2 2 . . . . 2 Swarmer 18 | . 3 3 . . . 4 6 . 2 . . . Grunt 72 | . 6 6 1 . . 14 15 10 9 5 . 6 Brawler 4 | . . . . . . 2 1 1 . . . . Duelist 2 | . . . 1 . . . . . . 1 . . Sentry 28 | . . 5 . . . 6 2 2 8 . 4 1 Hunter 7 | . . . . . . . 2 . 3 2 . . Programmer 4 | . . . . . . . 4 . . . . . Behemoth 2 | . . . . . . . . . 2 . . . Cetus Guard 3 | . . . . . . . . . . 3 . . Thug 2 | . . . . . . . . . 2 . . . Best Kill Streak 16 | 4 4 6 4 . 1 4 9 5 4 5 4 16 Combat Bots Only 5 | . 3 4 2 . . 4 5 5 4 5 4 5 Max Kills in Single Turn 6 | 1 1 2 1 . 1 2 2 1 1 1 1 6 Gunslinging 1 | . . . . . . 1 . . . . . . Exploded 2 | . . 2 . . . . . 1 . . . 1 Melee 1 | . . . . . . 1 . 1 1 . . . Uniques/NPCs Destroyed . | . . . . . . . . . . . . . Combat | -11 -10 -9 -9 -9 -8 -8 -7 -6 -6 -6 -6 -6 -------- Run | Scr Mat Mat Min Exi Min Mat Fac Fac Ext Cet Arc Hub Damage Taken 11963 | . 127 383 132 . . 1432 2018 1691 2782 223 221 2954 Core 1393 | . 18 44 16 . . 219 244 260 284 33 20 255 Absorbed by Shields 430 | . . . . . . . 243 . 47 140 . . Core Remaining (%) 80 | 100 92 . . . 85 60 65 . . . . . Volleys Fired 567 | 11 47 81 13 . . 84 139 53 75 25 10 29 Largest 3 | 2 2 2 2 . . 2 2 3 3 3 3 3 Hottest 163 | 100 100 119 90 . . 126 110 86 163 163 141 141 Shots Fired 1069 | 22 93 133 26 . . 132 237 92 152 74 30 78 Gun 840 | 22 92 133 25 . . 128 221 88 71 21 10 29 Cannon 214 | . . . . . . 4 12 . 81 53 20 44 Launcher 15 | . 1 . 1 . . . 4 4 . . . 5 Special . | . . . . . . . . . . . . . Kinetic 702 | . . 18 . . . 56 217 88 146 74 30 73 Thermal 194 | 22 58 20 . . . 76 12 . 6 . . . Explosive 15 | . 1 . 1 . . . 4 4 . . . 5 Electromagnetic 158 | . 34 95 25 . . . 4 . . . . . Robot Hit Streak 57 | 16 36 32 16 . . 57 30 24 23 19 17 16 Robot Miss Streak 4 | 1 3 2 1 . . 1 2 3 3 1 1 4 Penetration Max 2 | . . . . . . . 1 . 2 1 . 1 Secondary Targets 6 | . 1 . . . . 1 4 . . . . . Max Gunslinging Chain 1 | . 1 . . . . 1 1 . . . . . Shots Hit Robots 909 | 19 77 107 17 . 2 142 192 93 137 55 21 47 Core Hits 409 | 5 29 40 11 . . 61 81 48 60 25 9 40 Critical Hits 38 | . . . . . . 1 4 3 18 7 1 4 Critical Kills 14 | . . . . . . . 2 2 4 4 1 1 Critical Parts Destroyed 19 | . . . . . . 1 1 1 10 3 . 3 Melee Attacks 77 | . . 2 . . 2 24 2 14 33 . . . Impact 4 | . . 2 . . 2 . . . . . . . Slashing 73 | . . . . . . 24 2 14 33 . . . Piercing . | . . . . . . . . . . . . . Sneak Attacks 17 | . . . . . 2 7 . . 8 . . . Combat Hostiles 1 | . . . . . . . . . 1 . . . Follow-up Attacks 4 | . . . . . . . . . 4 . . . Damage Inflicted 23840 | 225 1012 1744 368 . 158 3270 4065 2593 5209 1722 618 2856 Guns 12551 | 225 939 1525 293 . . 2039 3581 1350 1246 494 207 652 Cannons 4334 | . . . . . . 48 188 . 1603 1228 411 856 Explosions 2743 | . 73 219 75 . . . 296 732 . . . 1348 Melee 4189 | . . . . . 158 1183 . 511 2337 . . . Ramming 23 | . . . . . . . . . 23 . . . Kinetic 12545 | . . 210 . . . 860 3543 1350 2734 1722 618 1508 Thermal 3089 | 225 634 463 27 . . 1227 188 210 115 . . . Explosive 2161 | . . . 48 . . . 296 469 . . . 1348 Electromagnetic 1833 | . 378 1071 293 . . . 38 53 . . . . Impact 158 | . . . . . 158 . . . . . . . Slashing 4031 | . . . . . . 1183 . 511 2337 . . . Piercing . | . . . . . . . . . . . . . Highest Corruption 1 | . . . . . . . . 1 1 1 1 1 Average Corruption 1 | . . . . . . . . 1 1 1 1 1 Corruption Purged . | . . . . . . . . . . . . . Effects 21 | . . . . . . . . 1 9 4 1 6 Message Errors 8 | . . . . . . . . 1 4 2 . 1 Energy Discharges 3 | . . . . . . . . . 3 . . . Data Loss (minor) 4 | . . . . . . . . . 2 1 . 1 Targeting Errors 5 | . . . . . . . . . . . 1 4 Weapon Failures 1 | . . . . . . . . . . 1 . . Overload Shots . | . . . . . . . . . . . . . Overflow Damage 1247 | . . . . . 88 251 . 113 724 20 . 51 Projectiles 101 | . . . . . . . . . 45 20 . 36 Explosions 103 | . . . . . . . . 88 . . . 15 Melee 1043 | . . . . . 88 251 . 25 679 . . . Knockbacks 18 | . . . . . 2 . . . 7 4 . 5 Impact 2 | . . . . . 2 . . . . . . . Kinetic 15 | . . . . . . . . . 6 4 . 5 Secondary 1 | . . . . . . . . . 1 . . . Self-Inflicted Damage 398 | . . 47 20 . . . 19 279 3 . . 30 Shots 15 | . . 2 1 . . . 2 9 . . . 1 Rammed 1 | . . . . . . . . . 1 . . . Targets Rammed 3 | . . . . . . . . . 3 . . . Kicked 2 | . . . . . . . . . 2 . . . Crushed . | . . . . . . . . . . . . . Highest Temperature 503 | 194 306 231 162 . . 424 265 110 132 325 324 503 Average Temperature 83 | 94 100 41 63 . . 110 40 29 38 101 140 167 Received Heat Transfer 5141 | . 66 159 42 . . 846 616 768 894 55 54 1641 Effects 12 | . 3 . . . . 1 1 . . . 1 6 Energy Bleed 1 | . . . . . . . . . . . . 1 Interference 8 | . 3 . . . . . 1 . . . 1 3 Matter Decay 1 | . . . . . . 1 . . . . . . Short Circuit 1 | . . . . . . . . . . . . 1 Damage (minor) 1 | . . . . . . . . . . . . 1 Siege Activations . | . . . . . . . . . . . . . Robots Corrupted 1 | . . 1 . . . . . . . . . . Combat Hostiles . | . . . . . . . . . . . . . Parts Fried 15 | . 1 6 2 . 4 . . . . 2 . . Impact Corruptions 5 | . . . . . 4 . . . 1 . . . Robots Melted . | . . . . . . . . . . . . . Combat Hostiles . | . . . . . . . . . . . . . Parts Melted 14 | 3 4 . . . . 5 . . 2 . . . Heat Transferred 6470 | 666 1765 818 50 . . 2590 296 100 185 . . . Parts Sabotaged . | . . . . . . . . . . . . . Parts Stolen . | . . . . . . . . . . . . . Parts Stripped . | . . . . . . . . . . . . . Power Chain Reactions 8 | . 2 5 1 . . . . . . . . . Missiles Intercepted . | . . . . . . . . . . . . . Alert | -11 -10 -9 -9 -9 -8 -8 -7 -6 -6 -6 -6 -6 ------- Run | Scr Mat Mat Min Exi Min Mat Fac Fac Ext Cet Arc Hub Peak Influence 494 | 20 260 289 156 . 10 477 372 414 309 309 231 494 Initial 129 | . 11 22 73 . . 3 129 46 122 3 103 66 Average 165 | 6 105 175 85 . 4 238 153 296 130 163 210 175 Maximum Alert Level 2 | . 1 1 . . . 2 1 2 1 1 1 2 Low Security (%) 61 | 100 75 60 100 . 100 40 63 13 76 67 16 70 Level 1 33 | . 24 39 . . . 39 36 70 23 32 83 16 Level 2 4 | . . . . . . 19 . 15 . . . 12 Level 3 . | . . . . . . . . . . . . . Level 4 . | . . . . . . . . . . . . . Level 5 . | . . . . . . . . . . . . . High Security . | . . . . . . . . . . . . . Max Security . | . . . . . . . . . . . . . Squads Dispatched 28 | . . 2 . . . 3 8 2 4 2 . 7 Investigation 7 | . . 1 . . . . . . 2 2 . 2 Extermination 4 | . . . . . . . 4 . . . . . Reinforcement 14 | . . 1 . . . 3 4 1 2 . . 3 Assault 1 | . . . . . . . . 1 . . . . Garrison 2 | . . . . . . . . . . . . 2 Intercept . | . . . . . . . . . . . . . Construction Impeded 3 | . . . . . . . . . 2 . . 1 Haulers Reinforced 3 | . . . . . . . 2 1 . . . . Stealth | -11 -10 -9 -9 -9 -8 -8 -7 -6 -6 -6 -6 -6 --------- Run | Scr Mat Mat Min Exi Min Mat Fac Fac Ext Cet Arc Hub Distress Signals 12 | . . 2 . . . 4 1 . 3 2 . . Communications Jammed 50 | . . . . . . . 46 4 . . . . Distress Signals 45 | . . . . . . . 45 . . . . . Times Spotted 250 | . 12 26 2 . 2 42 42 20 53 22 4 25 Peak Tracking Total 14 | . 3 3 2 . 3 6 6 5 6 5 3 14 Tactical Retreats 25 | . 1 2 . . . 4 5 3 8 . . 2 Traps | -11 -10 -9 -9 -9 -8 -8 -7 -6 -6 -6 -6 -6 ------- Run | Scr Mat Mat Min Exi Min Mat Fac Fac Ext Cet Arc Hub Traps Triggered 8 | . 4 1 . . . . 2 . 1 . . . Indirectly . | . . . . . . . . . . . . . Trap Hack Attempts . | . . . . . . . . . . . . . Triggered . | . . . . . . . . . . . . . Disarmed . | . . . . . . . . . . . . . Reprogrammed . | . . . . . . . . . . . . . Reused . | . . . . . . . . . . . . . Traps Extracted . | . . . . . . . . . . . . . Installed . | . . . . . . . . . . . . . Triggered . | . . . . . . . . . . . . . Machines | -11 -10 -9 -9 -9 -8 -8 -7 -6 -6 -6 -6 -6 ---------- Run | Scr Mat Mat Min Exi Min Mat Fac Fac Ext Cet Arc Hub Machines Disabled 33 | . . 2 1 . . 1 2 15 1 3 4 4 Max in Single Turn 7 | . . 1 1 . . 1 1 7 1 1 1 1 Garrison Access 2 | . . . . . . 1 . 1 . . . . Machines Sabotaged . | . . . . . . . . . . . . . Garrisons Compromised . | . . . . . . . . . . . . . Overloaded Fab Kills . | . . . . . . . . . . . . . Fab Network Shutdowns . | . . . . . . . . . . . . . Hacking | -11 -10 -9 -9 -9 -8 -8 -7 -6 -6 -6 -6 -6 --------- Run | Scr Mat Mat Min Exi Min Mat Fac Fac Ext Cet Arc Hub Machines Accessed 49 | . 7 4 1 . . 7 9 3 11 2 . 5 Terminals 40 | . 7 2 1 . . 5 6 1 11 2 . 5 Fabricators 2 | . . . . . . . 1 1 . . . . Repair Stations 3 | . . 1 . . . 1 1 . . . . . Recycling Units . | . . . . . . . . . . . . . Scanalyzers 2 | . . 1 . . . . 1 . . . . . Garrison Access 2 | . . . . . . 1 . 1 . . . . Total Hacks 194 | . 24 14 5 . . 29 54 6 35 5 . 22 Successful 119 | . 14 11 3 . . 20 38 4 15 2 . 12 Failed 74 | . 10 3 2 . . 8 16 2 20 3 . 10 Catastrophic 9 | . 1 . . . . . 2 . 1 2 . 3 Database Lockouts 1 | . . . . . . 1 . . . . . . Manual 58 | . 11 6 2 . . 10 5 2 9 1 . 12 Terminals 142 | . 24 7 5 . . 22 21 1 35 5 . 22 Fabricators 7 | . . . . . . . 4 3 . . . . Repair Stations 32 | . . 2 . . . 6 24 . . . . . Recycling Units . | . . . . . . . . . . . . . Scanalyzers 10 | . . 5 . . . . 5 . . . . . Garrison Access 3 | . . . . . . 1 . 2 . . . . Terminal Hacks 67 | . 12 4 3 . . 11 9 1 15 2 . 10 Record 7 | . . . 2 . . . . . . 2 . 3 Part Schematic 1 | . . . . . . . . . 1 . . . Robot Schematic 1 | . . . . . . . 1 . . . . . Robot Analysis 13 | . 3 2 . . . 2 . . 3 . . 3 Prototype ID Bank 11 | . 2 1 . . . 1 3 . 4 . . . Open Door 5 | . . . . . . . . 1 4 . . . Branch Access Points 3 | . 1 1 . . . . 1 . . . . . Emergency Access Points 1 | . . . . . . . . . . . . 1 Terminal Index 2 | . . . . . . 1 1 . . . . . Alert Level 4 | . . . . . . 1 . . 1 . . 2 Unreport Threat 3 | . 1 . . . . . 1 . 1 . . . Locate Traps 5 | . 2 . . . . 1 1 . 1 . . . Dispatch Records 1 | . . . . . . 1 . . . . . . Patrol Status 1 | . . . . . . 1 . . . . . . Investigation Status 1 | . . . . . . . . . . . . 1 Hauler Manifests 1 | . . . . . . 1 . . . . . . Registered Components 2 | . 1 . . . . 1 . . . . . . Zone Layout 5 | . 2 . 1 . . 1 1 . . . . . Fabricator Hacks 5 | . . . . . . . 3 2 . . . . Network Status 1 | . . . . . . . 1 . . . . . Load Schematic 2 | . . . . . . . 1 1 . . . . Build 2 | . . . . . . . 1 1 . . . . Repair Station Hacks 30 | . . 2 . . . 6 22 . . . . . Scan Component 15 | . . 1 . . . 3 11 . . . . . Repair 15 | . . 1 . . . 3 11 . . . . . Recycling Unit Hacks . | . . . . . . . . . . . . . Scanalyzer 7 | . . 4 . . . . 3 . . . . . Insert Component 4 | . . 2 . . . . 2 . . . . . Analyze 3 | . . 2 . . . . 1 . . . . . Garrison Access Hacks 1 | . . . . . . 1 . . . . . . Seal Access 1 | . . . . . . 1 . . . . . . Unauthorized Hacks 9 | . 2 1 . . . 2 1 1 . . . 2 Terminals 8 | . 2 1 . . . 2 1 . . . . 2 Botnet 7 | . 2 1 . . . 2 1 . . . . 1 Disrupt 1 | . . . . . . . . . . . . 1 Fabricators . | . . . . . . . . . . . . . Repair Stations . | . . . . . . . . . . . . . Recycling Units . | . . . . . . . . . . . . . Scanalyzers . | . . . . . . . . . . . . . Garrison Access 1 | . . . . . . . . 1 . . . . Watchers 1 | . . . . . . . . 1 . . . . Data Cores Recovered 1 | . . . . . . . . . . . . 1 Used 1 | . . . . . . . . . . . . 1 Hacking Detections 42 | . 7 3 1 . . 6 7 2 9 2 . 5 Full Trace Events 6 | . . . . . . . . . 2 2 . 2 Feedback Events 1 | . . . . . . . . . 1 . . . Hackware Fried 1 | . . . . . . . . . 1 . . . Feedback Blocked . | . . . . . . . . . . . . . Robot Schematics Acquired 1 | . . . . . . . 1 . . . . . Robots Built . | . . . . . . . . . . . . . Matter . | . . . . . . . . . . . . . Time . | . . . . . . . . . . . . . Total Robot Build Rating . | . . . . . . . . . . . . . Part Schematics Acquired 3 | . . 1 . . . . 1 . 1 . . . Parts Built 1 | . . . . . . . . 1 . . . . Matter 438 | . . . . . . . 219 219 . . . . Time 174 | . . . . . . . 116 58 . . . . Total Part Build Rating 3 | . . . . . . . . 3 . . . . Parts Repaired 15 | . . 1 . . . 3 11 . . . . . Time 677 | . . 32 . . . 124 521 . . . . . Parts Recycled . | . . . . . . . . . . . . . Recycled Matter . | . . . . . . . . . . . . . Retrieved Matter . | . . . . . . . . . . . . . Retrieved Components . | . . . . . . . . . . . . . Parts Scanalyzed 4 | . . 2 . . . . 2 . . . . . Part Schematics Acquired 2 | . . 1 . . . . 1 . . . . . Parts Damaged . | . . . . . . . . . . . . . Bothacking | -11 -10 -9 -9 -9 -8 -8 -7 -6 -6 -6 -6 -6 ------------ Run | Scr Mat Mat Min Exi Min Mat Fac Fac Ext Cet Arc Hub Used RIF Installer . | . . . . . . . . . . . . . Robots Hacked . | . . . . . . . . . . . . . Non-combat . | . . . . . . . . . . . . . Combat . | . . . . . . . . . . . . . Robot Hacks Applied . | . . . . . . . . . . . . . Relay Couplers Released 1 | . . . . . . . . 1 . . . . Machine Destruction 1 | . . . . . . . . 1 . . . . Robots Rewired 22 | . . . . . . . . . 22 . . . Allies Hacked . | . . . . . . . . . . . . . Hacks Repelled . | . . . . . . . . . . . . . Allies | -11 -10 -9 -9 -9 -8 -8 -7 -6 -6 -6 -6 -6 -------- Run | Scr Mat Mat Min Exi Min Mat Fac Fac Ext Cet Arc Hub Total Allies 28 | . . . . . . . . . 28 . . . Largest Group 11 | . . . . . . . . . 11 8 2 . Highest-Rated Group 402 | . . . . . . . . . 402 362 175 . Highest-Rated Ally 156 | . . . . . . . . . 156 156 156 . Total Orders . | . . . . . . . . . . . . . Ally Attacks 176 | . . . . . . . . . 114 62 . . Total Damage 4187 | . . . . . . . . . 2235 1952 . . Kills 29 | . . . . . . . . . 18 11 . . Allies Corrupted . | . . . . . . . . . . . . . Allies Melted . | . . . . . . . . . . . . . Intel | -11 -10 -9 -9 -9 -8 -8 -7 -6 -6 -6 -6 -6 ------- Run | Scr Mat Mat Min Exi Min Mat Fac Fac Ext Cet Arc Hub Robot Analysis Total 13 | . 3 2 . . . 2 . . 3 . . 3 Derelict Logs Recovered 2 | . . . 2 . . . . . . . . . Drone Launches . | . . . . . . . . . . . . . Drone Recoveries . | . . . . . . . . . . . . . Exploration | -11 -10 -9 -9 -9 -8 -8 -7 -6 -6 -6 -6 -6 ------------- Run | Scr Mat Mat Min Exi Min Mat Fac Fac Ext Cet Arc Hub Turns Passed 10968 | 83 741 1053 644 189 136 1411 2280 888 2351 555 268 369 Spaces Moved 6194 | 42 644 714 501 165 109 778 1161 355 1162 265 147 151 Core 27 | 7 . . . . . . . 20 . . . . Treads 1284 | . . . . . . 5 . . 716 265 147 151 Legs 671 | . . . . . . . . 225 446 . . . Wheels 4212 | 35 644 714 501 165 109 773 1161 110 . . . . Hover . | . . . . . . . . . . . . . Flight . | . . . . . . . . . . . . . Fastest Speed 50 | 50 80 86 86 100 110 100 92 96 120 160 160 160 Average Speed 118 | 75 89 90 98 104 110 109 105 169 145 160 160 160 Slowest Speed 800 | 80 90 93 100 110 110 270 116 800 160 160 160 160 Overloaded Moves . | . . . . . . . . . . . . . Propulsion Burnouts . | . . . . . . . . . . . . . Robots Hopped . | . . . . . . . . . . . . . Cave-ins Triggered . | . . . . . . . . . . . . . Exploration Rate (%) 50 | 3 79 46 96 52 31 46 23 9 87 77 89 18 Regions Visited 12 Branch Regions 7 Pre-discovered Areas . | . . . . . . . . . . . . . Known Exits Taken 2 | . . 1 . . . 1 . . . . . . Unknown Exits Taken 10 | 1 1 . 1 1 1 . 1 1 1 1 1 . Scrap Searched 3 | . . . 2 . 1 . . . . . . . Spaces Dug 36 | . 8 2 . . . . 6 . 2 . 1 17 Terrain Destroyed 191 | . 17 23 12 . . 1 16 34 16 1 2 69 Melee 4 | . . 2 . . . . 2 . . . . . Projectile 37 | . . . . . . 1 . . 16 1 2 17 AOE 150 | . 17 21 12 . . . 14 34 . . . 52 Terrain Rammed . | . . . . . . . . . . . . . Walls Destroyed . | . . . . . . . . . . . . . Machines Disabled . | . . . . . . . . . . . . . Actions | -11 -10 -9 -9 -9 -8 -8 -7 -6 -6 -6 -6 -6 --------- Run | Scr Mat Mat Min Exi Min Mat Fac Fac Ext Cet Arc Hub Total 8794 | 71 718 985 623 183 121 1183 1985 553 1650 345 157 220 Wait 1300 | . 8 126 85 4 11 231 569 101 122 23 1 19 Move 6182 | 41 643 713 500 164 108 777 1160 354 1161 264 146 151 Hop . | . . . . . . . . . . . . . Pick Up 152 | 10 4 18 6 9 . 18 26 9 39 10 . 3 Fast Attach 41 | 1 3 6 1 . . 7 16 4 1 2 . . Attach 87 | 7 . 3 2 1 . 14 8 12 32 2 . 6 Detach 10 | . . . . . . 2 3 2 2 1 . . Swap 95 | . 6 16 10 . . 16 25 2 15 3 . 2 Drop 133 | 1 7 20 6 5 . 10 26 2 31 15 . 10 Fire 567 | 11 47 81 13 . . 84 139 53 75 25 10 29 Melee 72 | . . 2 . . 2 24 2 14 28 . . . Ram . | . . . . . . . . . . . . . Kick 3 | . . . . . . . . . 3 . . . Crush . | . . . . . . . . . . . . . Escape Stasis 10 | . . . . . . . 8 . 2 . . . Rewire 142 | . . . . . . . 3 . 139 . . . Trap . | . . . . . . . . . . . . . Miscellaneous . | . . . . . . . . . . . . . Route ------- -11/Scrapyard -10/Materials (discovered 4 exits: *Mat x3 / *Min) -9/Materials (discovered 3 exits: *Mat / *Min / *Sto) -9/Mines (discovered 3 exits: *Mat x2 / [*Exi]) -9/Exiles -8/Mines -8/Materials (discovered 2 exits: *Fac x2) -7/Factory (discovered 4 exits: *Fac x2 / Low x2) -6/Factory -6/Extension (discovered 2 exits: [*Fac] / *Cet) -6/Cetus (discovered 3 exits: [*Fac x2] / *Arc) -6/Archives (discovered 3 exits: [*Fac] / *Hub x2) -6/Hub_04(d) (discovered 1 exit: [*Fac]) History --------- Turn | Location | Event 18 | -11/Scrapyard | Discovered new exit (range 14) 84 | -11/Scrapyard | Entered Materials 283 | -10/Materials | Discovered new exit (range 14) 308 | -10/Materials | Build established: Mutant 432 | -10/Materials | Discovered new exit (range 16) 558 | -10/Materials | Identified exit to Mines 575 | -10/Materials | Discovered new exit (range 16) 825 | -10/Materials | Entered another Materials area 825 | -9/Materials | Evolved 2 slots: Propulsion x1, Utility x1 846 | -9/Materials | Build established: Scavenger-Mutant 1227 | -9/Materials | Discovered new exit (range 8) 1400 | -9/Materials | Repaired Imp. Terrain Scanner 1503 | -9/Materials | Discovered new exit (range 8) 1622 | -9/Materials | Build established: Mutant 1747 | -9/Materials | Identified exit to Mines 1747 | -9/Materials | Identified exit to Storage 1878 | -9/Materials | Entered Mines 1882 | -9/Mines | Discovered new exit (range 14) 1961 | -9/Mines | Discovered new exit (range 5) 2010 | -9/Mines | Learned 2 Materials zone layouts 2015 | -9/Mines | Learned 2 Materials zone layouts 2124 | -9/Mines | Discovered new exit (range 9) 2168 | -9/Mines | Deemed a non-threat by the Exiles lab entrance 2522 | -9/Mines | Entered Exiles 2548 | -9/Exiles | Met 8R-AWN 2563 | -9/Exiles | Met EX-HEX 2649 | -9/Exiles | Met EX-DEC 2697 | -9/Exiles | Discovered new exit (range 14) 2711 | -9/Exiles | Entered Mines 2836 | -8/Mines | Discovered new exit (range 10) 2847 | -8/Mines | Entered Materials 2847 | -8/Materials | Evolved 2 slots: Propulsion x1, Utility x1 2848 | -8/Materials | Identified exit to Factory 3534 | -8/Materials | Build established: Hauler-Mutant 3544 | -8/Materials | Lost 3 parts (2n1w) 3748 | -8/Materials | Repaired Com. Wheel 3810 | -8/Materials | Repaired Enh. Autogun 3849 | -8/Materials | Repaired Hrd. Medium Armor Plating 4197 | -8/Materials | Central database locked down 4204 | -8/Materials | Discovered exit to Factory (range 4) 4258 | -8/Materials | Entered Factory 4258 | -7/Factory | Evolved 2 slots: Utility x2 4510 | -7/Factory | Repaired Adv. Terrain Scanner 4571 | -7/Factory | Repaired Com. Wheel 4632 | -7/Factory | Repaired Enh. Autogun 4778 | -7/Factory | Discovered new exit (range 4) 4985 | -7/Factory | Build established: Mutant 5135 | -7/Factory | Identified exit to Lower Caves 5442 | -7/Factory | Repaired Arm. Wheel 5487 | -7/Factory | Repaired Arm. Huge Wheel 5527 | -7/Factory | Repaired Adv. Terrain Scanner 5568 | -7/Factory | Repaired Transmission Jammer 5640 | -7/Factory | Repaired Prc. Assault Rifle 5686 | -7/Factory | Repaired Imp. Medium Armor Plating 5757 | -7/Factory | Repaired Prc. Assault Rifle 5981 | -7/Factory | Repaired Broken Arm. Huge Wheel 6524 | -7/Factory | Discovered new exit (range 13) 6538 | -7/Factory | Entered another Factory area 6538 | -6/Factory | Evolved 2 slots: Utility x1, Weapon x1 6666 | -6/Factory | Lost 3 parts (1u2w) 6728 | -6/Factory | Fabricated Enh. Autogun (x1) 6819 | -6/Factory | Lost 6 parts (3n2u1w) 6911 | -6/Factory | Build established: Assassin 7323 | -6/Factory | Discovered new exit (range 15) 7426 | -6/Factory | Entered Extension 7475 | -6/Extension | Build established: Hacker-Mutant 7481 | -6/Extension | Hacking Suite fried by hacking feedback 7751 | -6/Extension | Disrupted transfer network 8122 | -6/Extension | Spotted B-75 Beast 8208 | -6/Extension | Core integrity fell below 50% 8237 | -6/Extension | Destroyed B-75 Beast 8254 | -6/Extension | Lost 5 parts (2n1u2w) 8282 | -6/Extension | Spotted B-75 Beast 8299 | -6/Extension | Destroyed B-75 Beast 8572 | -6/Extension | Rescued a captive Derelict 8614 | -6/Extension | Rescued a captive Derelict 8615 | -6/Extension | Rescued a captive Derelict 8709 | -6/Extension | Rescued a captive Derelict 8709 | -6/Extension | Rescued a captive Derelict 8804 | -6/Extension | Build established: Scavenger-Gunner 9030 | -6/Extension | Rescued A7 9141 | -6/Extension | Discovered new exit (range 10) 9145 | -6/Extension | Discovered new exit (range 6) 9184 | -6/Extension | Build established: Scavenger-Tank 9777 | -6/Extension | Entered Cetus 9777 | -6/Cetus | Accompanied by 8 allies (A7) 9782 | -6/Cetus | Acquired a Cetus Manufacturing Module code from A7 9799 | -6/Cetus | Spotted Cetus Guard 9799 | -6/Cetus | Spotted Cetus Guard 9801 | -6/Cetus | Spotted Cetus Guard 9803 | -6/Cetus | Spotted Cetus Guard 9812 | -6/Cetus | Allies destroyed Cetus Guard 9814 | -6/Cetus | Allies destroyed Cetus Guard 9816 | -6/Cetus | Destroyed Cetus Guard 9923 | -6/Cetus | Discovered new exit (range 15) 10148 | -6/Cetus | Discovered new exit (range 15) 10179 | -6/Cetus | Spotted Cetus Guard 10180 | -6/Cetus | Spotted Cetus Guard 10187 | -6/Cetus | Destroyed Cetus Guard 10187 | -6/Cetus | Spotted Cetus Guard 10191 | -6/Cetus | Spotted Cetus Guard 10193 | -6/Cetus | Destroyed Cetus Guard 10196 | -6/Cetus | Allies destroyed Cetus Guard 10203 | -6/Cetus | Allies destroyed Cetus Guard 10210 | -6/Cetus | Discovered new exit (range 16) 10218 | -6/Cetus | Met Revision 17 10332 | -6/Cetus | Entered Archives 10332 | -6/Archives | Accompanied by 2 allies (A7) 10400 | -6/Archives | Unable to access archive contents 10404 | -6/Archives | Discovered new exit (range 15) 10476 | -6/Archives | Discovered new exit (range 16) 10516 | -6/Archives | Discovered new exit (range 16) 10600 | -6/Archives | Entered Hub_04(d) 10682 | -6/Hub_04(d) | Discovered new exit (range 3) 10853 | -6/Hub_04(d) | Garrison activated, responded to threat 10929 | -6/Hub_04(d) | Core integrity fell below 20% 10969 | -6/Hub_04(d) | Destroyed by G-50 Soldier with Heavy Laser Last Messages --------------- 10963_ The unstable cave ceiling collapses. 10963_ K-01 Serf collects debris. 10963_ U-05 Engineer lays Concrete. 10963_ K-01 Serf collects debris. 10965_ U-05 Engineer lays Concrete. 10965_ Dropped Centrium Heavy Treads. 10966_ U-05 Engineer lays Concrete. 10966_ Dropped Adv. Heat Sink. 10966_ K-01 Serf collects debris. 10967_ Dropped Centrium Medium Armor Plating. 10967_ U-05 Engineer lays Concrete. 10967_ K-01 Serf collects debris. 10967_ Dropped Hcp. Storage Unit. 10967_ K-01 Serf collects debris. 10968_ Dropped Centrium Medium Armor Plating. 10968_ Dropped Focal Shield. 10969_ Dropped Broken Field Recycling Unit. 10969_ K-01 Serf collects debris. 10969_ U-05 Engineer lays Concrete. 10969_ Discarded Imp. Signal Interpreter. Map ----- +----------------------------------------------------+ | ?????????????????????????????????????????????????? | | ?????????????????????????????????????????????????? | | ?????????????????????????????????????????????????? | | ?????????????????????????????????????????????????? | | ?????????????????????????????????????????????????? | | ?????????????????????????????????????????????????? | | ?????????????????????????????????????????????????? | | ?????????????????????????????????????????????????? | | ?????????????????????????????????????????????????? | | ?????????????????????????????????????????????????? | | ?????????????????????????????????????????????????? | | ?????????????????????????????????????????????????? | | ?????????????????????????????????????????????????? | | ?????????????????????????????????????????????????? | | ?????????????????????????????????????????????????? | | ?????????????????????????????????????????????????? | | ?????????????????????????????????????????????????? | | ?????????????????????????????????????????????????? | | ?????????????????????????????????????????????????? | | ?????????????????????????????????????????????????? | | ?????????????????????????????????????????????????? | | ????????????????????????????????????#????????????? | | ????????????????? ??####????????? #????????????? | | ????????????????# ??###### ##??? #????????????? | | ????????????????# #?#!===#* ##? #????????????? | | ????????????????# ###==@kk/! # #####????????? | | ?????? ???????# !![=%%g=! k ???????? | | ?????# #??????# [!ggg% =k != o ???????? | | ?????# #??????# Y !==*% !!!u = ?????????? | | ?????# #??????# u !!Rg!!!= %= ???????? | | ?????# #??????# g# # #!g!! *!% ???????? | | ?????# #??????# # =|! ???????? | | ?????# #??????# || % ????????? | | ?????# #?????#; %== || ?????????? | | ?????# #???? # # ! | #g"# g ???????????? | | ?????# #????"?# # # # "" ????????????? | | ###### #??????# !!%! R # "G???^^^^???????? | | # #??????# =!= #? ???????????????? | | " " # #????""# #??????????????????? | | " # #?? # ####### #??????????????????? | | " # # """"# ##????# #??????????????????? | | + + """"# T#????# #??????????????????? | | " " # # """"# ##????# #??????????????????? | | " " # #??""""#% #?????# #??????????????????? | | " " # #???? # #?????# +??????????????????? | | # ######## #?????# #??????????????????? | | ##+### [ #?????# #??????????????????? | | *#% [ #?????# #??????????????????? | | " " # ]! #?????? #??????????????????? | | " " # #########?????? #??????????????????? | +----------------------------------------------------+ Best States ------------- Heat Dissipation 75 Energy Generation 25 Energy Capacity 350 Matter Stores 300 Matter Capacity 300 Sight Range 22 Robot Scan Range 16 Terrain Scan Range 20 Terrain Scan Density 210 Jamming Range 8 Corruption Prevention 12 Armor Coverage 825 Resistance: KI 40 Resistance: TH 35 Resistance: EX 20 Resistance: EM 20 Resistance: I 20 Resistance: S 20 Resistance: P 20 Phase Shifting 5 Evasion (%) 45 Melee Accuracy 5 Target Analysis 5 Recoil Reduction 4 Offensive Hacking 20 Item Schematics ----------------- Imp. Terrain Scanner | -9/Materials | Scanalyzed Enh. Autogun | -7/Factory | Scanalyzed Thermal Shield | -6/Extension | Hacked Robot Schematics ------------------ R-06 Scavenger | -7/Factory | Hacked Fabricated ------------ Enh. Autogun | x1 | -6/Factory Alien Tech Used ----------------- None Achievements -------------- None Challenges ------------ None Game ------ Seed ShadeCoolingDiverter Manual? 0 Play Time 02:01:57 Cumulative 27.9 hours Start 2021.02.15 @ 21:43:52 End 2021.02.15 @ 23:43:57 Sessions 1 Manual Loads 0 Difficulty Adventurer Special Mode None Game No. 37 Rogue 3 Adventurer 34 Explorer 0 Win Type - Total 0 Types 0/0/0/0/0/0/0/0/0 Lore% 32 Gallery% 37 Achievement% 31 Wizard Run 0 Options --------- ASCII 0 Keyboard 0 Movement Arrows Keybinds 0 Fullscreen 1 Font 16/SmallcapsGlow Map View 75x55 Tactical HUD 1 Map Filters NONE Filters NONE Steam 0 RUN: 1ef3b861-9460-4faf-b9a6-c5e4db0ccd44